[Event "Titled Tuesday Blitz May 10 Late 2022"]
[White "Sharbaf, Mohsen"]
[Black "Shapiro, Daniel"]
[WhiteFideId "12501808"]
[BlackFideId "2001780"]
[WhiteElo "2187"]
[BlackElo "2321"]
[Result "1-0"]
[Round "08"]
[TimeControl "180+1"]
[Date "2022.05.11"]
[WhiteClock "0:01:31"]
[BlackClock "0:00:11"]

1. c4 {[%clk 0:03:00]}  e5 {[%clk 0:02:56]} 2. g3 {[%clk 0:02:58]}  Nf6 {[%clk 0:02:55]} 3. Bg2 {[%clk 0:02:58]}  d5 {[%clk 0:02:54]} 4. cxd5 {[%clk 0:02:57]}  Nxd5 {[%clk 0:02:54]} 5. Nc3 {[%clk 0:02:56]}  Nb6 {[%clk 0:02:54]} 6. Nf3 {[%clk 0:02:55]}  Nc6 {[%clk 0:02:53]} 7. O-O {[%clk 0:02:55]}  Be7 {[%clk 0:02:53]} 8. a4 {[%clk 0:02:47]}  a6 {[%clk 0:02:41]} 9. a5 {[%clk 0:02:47]}  Nd7 {[%clk 0:02:39]} 10. d4 {[%clk 0:02:46]}  exd4 {[%clk 0:02:31]} 11. Nxd4 {[%clk 0:02:46]}  Nxd4 {[%clk 0:02:31]} 12. Qxd4 {[%clk 0:02:45]}  O-O {[%clk 0:02:28]} 13. Rd1 {[%clk 0:02:44]}  Nc5 {[%clk 0:02:26]} 14. Qc4 {[%clk 0:02:37]}  Be6 {[%clk 0:02:19]} 15. Rxd8 {[%clk 0:02:31]}  Bxc4 {[%clk 0:02:17]} 16. Rxa8 {[%clk 0:02:31]}  Rxa8 {[%clk 0:02:16]} 17. Bf4 {[%clk 0:02:26]}  c6 {[%clk 0:02:13]} 18. Rd1 {[%clk 0:02:17]}  Rd8 {[%clk 0:02:08]} 19. Rxd8+ {[%clk 0:02:15]}  Bxd8 {[%clk 0:02:08]} 20. b4 {[%clk 0:02:11]}  Ne6 {[%clk 0:02:06]} 21. Bd6 {[%clk 0:02:09]}  Nd4 {[%clk 0:01:52]} 22. e3 {[%clk 0:02:06]}  Nf5 {[%clk 0:01:50]} 23. Bc5 {[%clk 0:02:06]}  f6 {[%clk 0:01:38]} 24. Bh3 {[%clk 0:02:05]}  Be6 {[%clk 0:01:24]} 25. Ne4 {[%clk 0:01:58]}  Kf7 {[%clk 0:01:21]} 26. Bxf5 {[%clk 0:01:56]}  Bxf5 {[%clk 0:01:19]} 27. Nd6+ {[%clk 0:01:57]}  Ke6 {[%clk 0:01:16]} 28. Nxb7 {[%clk 0:01:55]}  Bc7 {[%clk 0:01:17]} 29. Bb6 {[%clk 0:01:53]}  Bb8 {[%clk 0:01:09]} 30. Nc5+ {[%clk 0:01:52]}  Kd5 {[%clk 0:01:08]} 31. Nxa6 {[%clk 0:01:49]}  Be5 {[%clk 0:01:07]} 32. Bc5 {[%clk 0:01:48]}  Kc4 {[%clk 0:01:06]} 33. f4 {[%clk 0:01:47]}  Kb5 {[%clk 0:00:59]} 34. fxe5 {[%clk 0:01:38]}  Kxa6 {[%clk 0:00:59]} 35. exf6 {[%clk 0:01:39]}  gxf6 {[%clk 0:00:58]} 36. Kf2 {[%clk 0:01:39]}  Be4 {[%clk 0:00:57]} 37. g4 {[%clk 0:01:38]}  f5 {[%clk 0:00:53]} 38. g5 {[%clk 0:01:34]}  Bd3 {[%clk 0:00:49]} 39. Kg3 {[%clk 0:01:34]}  Kb7 {[%clk 0:00:48]} 40. Kf4 {[%clk 0:01:34]}  Kc8 {[%clk 0:00:47]} 41. Ke5 {[%clk 0:01:32]}  Kd7 {[%clk 0:00:47]} 42. Kf6 {[%clk 0:01:32]}  Ke8 {[%clk 0:00:33]} 43. h4 {[%clk 0:01:31]}  Kd7 {[%clk 0:00:29]} 44. h5 {[%clk 0:01:31]}  Ke8 {[%clk 0:00:15]} 45. h6 {[%clk 0:01:31]}  f4 {[%clk 0:00:13]} 46. exf4 {[%clk 0:01:31]}  Be4 {[%clk 0:00:11]} 47. f5 {[%clk 0:01:31]} 1-0


[Site "https://www.chess.com"]

[Event "Titled Tuesday Blitz May 10 Late 2022"]
[White "Skliarov, Viktor"]
[Black "Prohorov, Olexandr"]
[WhiteFideId "14106736"]
[BlackFideId "14105578"]
[WhiteElo "2229"]
[BlackElo "1993"]
[Result "1-0"]
[Round "08"]
[TimeControl "180+1"]
[Date "2022.05.11"]
[WhiteClock "0:00:02"]
[BlackClock "0:00:01"]

1. e4 {[%clk 0:02:59]}  c5 {[%clk 0:02:59]} 2. Nf3 {[%clk 0:02:59]}  Nc6 {[%clk 0:02:58]} 3. Bb5 {[%clk 0:02:59]}  d6 {[%clk 0:02:55]} 4. d4 {[%clk 0:02:58]}  cxd4 {[%clk 0:02:55]} 5. Qxd4 {[%clk 0:02:59]}  Bd7 {[%clk 0:02:54]} 6. Bxc6 {[%clk 0:02:59]}  Bxc6 {[%clk 0:02:52]} 7. Nc3 {[%clk 0:02:59]}  e6 {[%clk 0:02:30]} 8. O-O {[%clk 0:02:58]}  Nf6 {[%clk 0:02:27]} 9. Bg5 {[%clk 0:02:56]}  Be7 {[%clk 0:02:27]} 10. Rad1 {[%clk 0:02:54]}  h6 {[%clk 0:02:12]} 11. Bh4 {[%clk 0:02:42]}  O-O {[%clk 0:02:10]} 12. Rfe1 {[%clk 0:02:32]}  Qa5 {[%clk 0:02:05]} 13. e5 {[%clk 0:02:04]}  dxe5 {[%clk 0:02:02]} 14. Nxe5 {[%clk 0:02:03]}  Rfd8 {[%clk 0:02:02]} 15. Nxc6 {[%clk 0:01:58]}  bxc6 {[%clk 0:02:02]} 16. Qc4 {[%clk 0:01:55]}  Qb6 {[%clk 0:01:58]} 17. b3 {[%clk 0:01:47]}  Rxd1 {[%clk 0:01:57]} 18. Rxd1 {[%clk 0:01:47]}  Rd8 {[%clk 0:01:57]} 19. Rxd8+ {[%clk 0:01:45]}  Bxd8 {[%clk 0:01:55]} 20. h3 {[%clk 0:01:33]}  Be7 {[%clk 0:01:49]} 21. Bg3 {[%clk 0:01:25]}  Nd5 {[%clk 0:01:45]} 22. Na4 {[%clk 0:01:12]}  Qb5 {[%clk 0:01:39]} 23. Qe4 {[%clk 0:01:11]}  Nf6 {[%clk 0:01:21]} 24. Qe5 {[%clk 0:01:05]}  Qd5 {[%clk 0:01:14]} 25. c4 {[%clk 0:00:58]}  Qd2 {[%clk 0:01:03]} 26. Qb8+ {[%clk 0:00:43]}  Bf8 {[%clk 0:00:44]} 27. c5 {[%clk 0:00:21]}  Ne4 {[%clk 0:00:35]} 28. Qxa7 {[%clk 0:00:15]}  Qe1+ {[%clk 0:00:20]} 29. Kh2 {[%clk 0:00:16]}  Nd2 {[%clk 0:00:19]} 30. h4 {[%clk 0:00:12]}  Nf1+ {[%clk 0:00:10]} 31. Kh3 {[%clk 0:00:12]}  Qe4 {[%clk 0:00:05]} 32. Bd6 {[%clk 0:00:05]}  Qf5+ {[%clk 0:00:03]} 33. g4 {[%clk 0:00:06]}  Qf3+ {[%clk 0:00:03]} 34. Bg3 {[%clk 0:00:06]}  f5 {[%clk 0:00:02]} 35. gxf5 {[%clk 0:00:03]}  exf5 {[%clk 0:00:02]} 36. Qd7 {[%clk 0:00:03]}  f4 {[%clk 0:00:01]} 37. Qe6+ {[%clk 0:00:03]}  Kh8 {[%clk 0:00:01]} 38. Qf7 {[%clk 0:00:02]} 1-0


[Site "https://www.chess.com"]

[Event "Titled Tuesday Blitz May 10 Late 2022"]
[White "Terry, Renato"]
[Black "Erdogdu, Mert"]
[WhiteFideId "3803457"]
[BlackFideId "6301495"]
[WhiteElo "2577"]
[BlackElo "2451"]
[Result "0-1"]
[Round "08"]
[TimeControl "180+1"]
[Date "2022.05.10"]
[WhiteClock "0:00:02"]
[BlackClock "0:00:39"]

1. d4 {[%clk 0:03:00]}  d5 {[%clk 0:03:00]} 2. Nf3 {[%clk 0:02:59]}  e6 {[%clk 0:03:00]} 3. c4 {[%clk 0:03:00]}  c5 {[%clk 0:03:01]} 4. dxc5 {[%clk 0:03:00]}  Bxc5 {[%clk 0:03:00]} 5. e3 {[%clk 0:03:01]}  Nf6 {[%clk 0:03:01]} 6. a3 {[%clk 0:03:01]}  a5 {[%clk 0:03:00]} 7. Nc3 {[%clk 0:03:01]}  O-O {[%clk 0:03:00]} 8. Be2 {[%clk 0:03:02]}  Nc6 {[%clk 0:03:00]} 9. O-O {[%clk 0:03:01]}  d4 {[%clk 0:03:00]} 10. exd4 {[%clk 0:02:55]}  Nxd4 {[%clk 0:03:00]} 11. Nxd4 {[%clk 0:02:54]}  Bxd4 {[%clk 0:03:01]} 12. Nb5 {[%clk 0:02:50]}  Bc5 {[%clk 0:03:01]} 13. Bf4 {[%clk 0:02:49]}  Bd7 {[%clk 0:02:56]} 14. Bf3 {[%clk 0:02:09]}  Bc6 {[%clk 0:02:56]} 15. Qe2 {[%clk 0:02:05]}  Qe7 {[%clk 0:02:49]} 16. Rfd1 {[%clk 0:01:44]}  Rfd8 {[%clk 0:02:45]} 17. h3 {[%clk 0:01:39]}  h6 {[%clk 0:02:42]} 18. Be5 {[%clk 0:01:32]}  Rac8 {[%clk 0:02:33]} 19. g3 {[%clk 0:01:25]}  Nh7 {[%clk 0:02:29]} 20. Bxc6 {[%clk 0:01:22]}  bxc6 {[%clk 0:02:30]} 21. Nc3 {[%clk 0:01:21]}  f6 {[%clk 0:02:14]} 22. Bf4 {[%clk 0:01:20]}  e5 {[%clk 0:02:14]} 23. Be3 {[%clk 0:01:19]}  Ng5 {[%clk 0:02:12]} 24. Bxc5 {[%clk 0:00:50]}  Qxc5 {[%clk 0:02:10]} 25. Ne4 {[%clk 0:00:49]}  Nxe4 {[%clk 0:02:01]} 26. Qxe4 {[%clk 0:00:50]}  Rb8 {[%clk 0:02:01]} 27. b4 {[%clk 0:00:41]}  axb4 {[%clk 0:02:00]} 28. axb4 {[%clk 0:00:42]}  Qxb4 {[%clk 0:01:25]} 29. Qxc6 {[%clk 0:00:42]}  Qe7 {[%clk 0:01:19]} 30. Rxd8+ {[%clk 0:00:38]}  Rxd8 {[%clk 0:01:17]} 31. c5 {[%clk 0:00:34]}  Qd7 {[%clk 0:01:16]} 32. Qg2 {[%clk 0:00:26]}  Rc8 {[%clk 0:01:16]} 33. Rc1 {[%clk 0:00:25]}  Qc6 {[%clk 0:01:13]} 34. Qf1 {[%clk 0:00:23]}  Qd5 {[%clk 0:01:13]} 35. Qb5 {[%clk 0:00:23]}  Rc6 {[%clk 0:01:12]} 36. h4 {[%clk 0:00:23]}  h5 {[%clk 0:01:12]} 37. Qb4 {[%clk 0:00:19]}  Kh7 {[%clk 0:01:11]} 38. Qc3 {[%clk 0:00:20]}  Kg6 {[%clk 0:01:00]} 39. Kh2 {[%clk 0:00:19]}  Kf7 {[%clk 0:00:59]} 40. Qe3 {[%clk 0:00:17]}  Ke6 {[%clk 0:00:53]} 41. Rc2 {[%clk 0:00:18]}  g6 {[%clk 0:00:49]} 42. Qa3 {[%clk 0:00:16]}  Qe4 {[%clk 0:00:46]} 43. Qb3+ {[%clk 0:00:16]}  Qd5 {[%clk 0:00:46]} 44. Qb8 {[%clk 0:00:15]}  Kf5 {[%clk 0:00:47]} 45. Qb5 {[%clk 0:00:13]}  e4 {[%clk 0:00:46]} 46. Qb4 {[%clk 0:00:08]}  g5 {[%clk 0:00:46]} 47. hxg5 {[%clk 0:00:08]}  fxg5 {[%clk 0:00:47]} 48. Qb7 {[%clk 0:00:05]}  h4 {[%clk 0:00:45]} 49. Qh7+ {[%clk 0:00:05]}  Kg4 {[%clk 0:00:44]} 50. Re2 {[%clk 0:00:04]}  Re6 {[%clk 0:00:40]} 51. gxh4 {[%clk 0:00:02]}  Qe5+ {[%clk 0:00:40]} 52. Kg2 {[%clk 0:00:02]}  gxh4 {[%clk 0:00:39]} 53. Qg7+ {[%clk 0:00:02]}  Qxg7 {[%clk 0:00:39]} 0-1


[Site "https://www.chess.com"]

[Event "Titled Tuesday Blitz May 10 Late 2022"]
[White "Tomaszewski, Kacper"]
[Black "Lewtak, Damian"]
[WhiteFideId "1127373"]
[BlackFideId "1141724"]
[WhiteElo "2153"]
[BlackElo "2362"]
[Result "0-1"]
[Round "08"]
[TimeControl "180+1"]
[Date "2022.05.11"]
[WhiteClock "0:00:19"]
[BlackClock "0:01:16"]

1. d4 {[%clk 0:03:00]}  d6 {[%clk 0:02:59]} 2. Nf3 {[%clk 0:02:58]}  g6 {[%clk 0:02:59]} 3. c4 {[%clk 0:02:53]}  Bg7 {[%clk 0:02:59]} 4. Nc3 {[%clk 0:02:53]}  e5 {[%clk 0:02:59]} 5. e4 {[%clk 0:02:49]}  exd4 {[%clk 0:02:58]} 6. Nxd4 {[%clk 0:02:48]}  Ne7 {[%clk 0:02:59]} 7. Be2 {[%clk 0:02:45]}  Nbc6 {[%clk 0:02:59]} 8. Be3 {[%clk 0:02:42]}  O-O {[%clk 0:02:58]} 9. O-O {[%clk 0:02:41]}  f5 {[%clk 0:02:58]} 10. exf5 {[%clk 0:02:41]}  Bxd4 {[%clk 0:02:58]} 11. Bxd4 {[%clk 0:02:40]}  Nxf5 {[%clk 0:02:58]} 12. Be3 {[%clk 0:02:28]}  Nxe3 {[%clk 0:02:58]} 13. fxe3 {[%clk 0:02:29]}  Rxf1+ {[%clk 0:02:57]} 14. Qxf1 {[%clk 0:02:25]}  Ne5 {[%clk 0:02:58]} 15. c5 {[%clk 0:02:19]}  dxc5 {[%clk 0:02:53]} 16. Rd1 {[%clk 0:02:18]}  Qe7 {[%clk 0:02:51]} 17. Nd5 {[%clk 0:02:18]}  Qf7 {[%clk 0:02:43]} 18. Qxf7+ {[%clk 0:02:17]}  Kxf7 {[%clk 0:02:44]} 19. Nxc7 {[%clk 0:02:17]}  Rb8 {[%clk 0:02:43]} 20. Rd5 {[%clk 0:02:13]}  Nd7 {[%clk 0:02:09]} 21. Bc4 {[%clk 0:01:41]}  Ke7 {[%clk 0:02:04]} 22. Bb5 {[%clk 0:01:22]}  a6 {[%clk 0:01:54]} 23. Bxd7 {[%clk 0:01:21]}  Bxd7 {[%clk 0:01:54]} 24. Rxc5 {[%clk 0:01:21]}  Kd6 {[%clk 0:01:55]} 25. b4 {[%clk 0:01:18]}  Bc6 {[%clk 0:01:54]} 26. Nxa6 {[%clk 0:01:06]}  bxa6 {[%clk 0:01:54]} 27. a3 {[%clk 0:01:06]}  Rb5 {[%clk 0:01:47]} 28. Rc3 {[%clk 0:01:06]}  a5 {[%clk 0:01:46]} 29. bxa5 {[%clk 0:01:04]}  Rb1+ {[%clk 0:01:46]} 30. Kf2 {[%clk 0:01:02]}  Rb2+ {[%clk 0:01:46]} 31. Kg3 {[%clk 0:00:59]}  Rxg2+ {[%clk 0:01:38]} 32. Kh3 {[%clk 0:00:59]}  Rg1 {[%clk 0:01:25]} 33. Kh4 {[%clk 0:00:45]}  Be8 {[%clk 0:01:25]} 34. Rd3+ {[%clk 0:00:37]}  Kc7 {[%clk 0:01:24]} 35. Rc3+ {[%clk 0:00:37]}  Kd6 {[%clk 0:01:20]} 36. Rd3+ {[%clk 0:00:37]}  Kc6 {[%clk 0:01:20]} 37. Rc3+ {[%clk 0:00:30]}  Kb5 {[%clk 0:01:18]} 38. e4 {[%clk 0:00:20]}  g5+ {[%clk 0:01:16]} 39. Kh3 {[%clk 0:00:19]}  Bd7# {[%clk 0:01:16]} 0-1


[Site "https://www.chess.com"]

[Event "Titled Tuesday Blitz May 10 Late 2022"]
[White "Villiers, Thomas"]
[Black "Sargsyan, Anna M."]
[WhiteFideId "427209"]
[BlackFideId "13308130"]
[WhiteElo "2164"]
[BlackElo "2271"]
[Result "0-1"]
[Round "08"]
[TimeControl "180+1"]
[Date "2022.05.11"]
[WhiteClock "0:01:01"]
[BlackClock "0:00:57"]

1. e4 {[%clk 0:03:00]}  c6 {[%clk 0:02:58]} 2. Nc3 {[%clk 0:02:58]}  d5 {[%clk 0:02:59]} 3. Nf3 {[%clk 0:02:58]}  Bg4 {[%clk 0:02:58]} 4. h3 {[%clk 0:02:56]}  Bxf3 {[%clk 0:02:58]} 5. Qxf3 {[%clk 0:02:57]}  Nf6 {[%clk 0:02:58]} 6. d3 {[%clk 0:02:55]}  e6 {[%clk 0:02:56]} 7. Be2 {[%clk 0:02:53]}  Bb4 {[%clk 0:02:53]} 8. O-O {[%clk 0:02:53]}  O-O {[%clk 0:02:48]} 9. e5 {[%clk 0:02:42]}  Nfd7 {[%clk 0:02:47]} 10. Qg4 {[%clk 0:02:41]}  Bxc3 {[%clk 0:02:46]} 11. bxc3 {[%clk 0:02:40]}  Nxe5 {[%clk 0:02:44]} 12. Qg3 {[%clk 0:02:40]}  Ng6 {[%clk 0:02:43]} 13. Rb1 {[%clk 0:02:38]}  b6 {[%clk 0:02:43]} 14. c4 {[%clk 0:02:38]}  Nd7 {[%clk 0:02:39]} 15. cxd5 {[%clk 0:02:37]}  cxd5 {[%clk 0:02:39]} 16. Ba3 {[%clk 0:02:36]}  Re8 {[%clk 0:02:39]} 17. c4 {[%clk 0:02:33]}  Rc8 {[%clk 0:02:31]} 18. cxd5 {[%clk 0:02:32]}  exd5 {[%clk 0:02:31]} 19. Bf3 {[%clk 0:02:27]}  Nde5 {[%clk 0:02:29]} 20. Bh5 {[%clk 0:02:16]}  Qf6 {[%clk 0:02:19]} 21. Rbc1 {[%clk 0:02:09]}  Nf4 {[%clk 0:02:12]} 22. Rxc8 {[%clk 0:01:49]}  Rxc8 {[%clk 0:02:13]} 23. d4 {[%clk 0:01:49]}  Nc4 {[%clk 0:02:05]} 24. Bg4 {[%clk 0:01:40]}  h5 {[%clk 0:01:54]} 25. Bc1 {[%clk 0:01:32]}  hxg4 {[%clk 0:01:42]} 26. Bxf4 {[%clk 0:01:22]}  gxh3 {[%clk 0:01:40]} 27. Qxh3 {[%clk 0:01:14]}  Re8 {[%clk 0:01:39]} 28. Bg3 {[%clk 0:01:12]}  Qxd4 {[%clk 0:01:29]} 29. Qd7 {[%clk 0:01:12]}  Re6 {[%clk 0:01:22]} 30. Qxa7 {[%clk 0:01:08]}  Nd2 {[%clk 0:01:21]} 31. Rc1 {[%clk 0:01:06]}  Ne4 {[%clk 0:00:57]} 32. Rc8+ {[%clk 0:01:02]}  Kh7 {[%clk 0:00:57]} 33. Qxf7 {[%clk 0:01:02]}  Qd1+ {[%clk 0:00:57]} 34. Kh2 {[%clk 0:01:01]}  Rh6+ {[%clk 0:00:57]} 0-1


[Site "https://www.chess.com"]

[Event "Titled Tuesday Blitz May 10 Late 2022"]
[White "Vlassov, Nikolai"]
[Black "Kim, Sergey"]
[WhiteFideId "4103360"]
[BlackFideId "13700570"]
[WhiteElo "2407"]
[BlackElo "2475"]
[Result "1-0"]
[Round "08"]
[TimeControl "180+1"]
[Date "2022.05.11"]
[WhiteClock "0:02:04"]
[BlackClock "0:01:54"]

1. e4 {[%clk 0:03:00]}  e5 {[%clk 0:02:59]} 2. Bc4 {[%clk 0:03:00]}  Nf6 {[%clk 0:02:59]} 3. Nc3 {[%clk 0:02:59]}  Bc5 {[%clk 0:02:59]} 4. f4 {[%clk 0:02:58]}  d6 {[%clk 0:02:58]} 5. Nf3 {[%clk 0:02:58]}  Nc6 {[%clk 0:02:58]} 6. f5 {[%clk 0:02:57]}  a6 {[%clk 0:02:48]} 7. d3 {[%clk 0:02:57]}  Nd4 {[%clk 0:02:47]} 8. Bg5 {[%clk 0:02:56]}  c6 {[%clk 0:02:45]} 9. Nxd4 {[%clk 0:02:50]}  Bxd4 {[%clk 0:02:44]} 10. Qd2 {[%clk 0:02:44]}  Bd7 {[%clk 0:02:31]} 11. O-O-O {[%clk 0:02:43]}  Qe7 {[%clk 0:02:28]} 12. Ne2 {[%clk 0:02:40]}  Ba7 {[%clk 0:02:26]} 13. Ng3 {[%clk 0:02:38]}  h6 {[%clk 0:02:11]} 14. Bh4 {[%clk 0:02:33]}  Nxe4 {[%clk 0:02:00]} 15. Nxe4 {[%clk 0:02:21]}  Qxh4 {[%clk 0:01:58]} 16. Nxd6+ {[%clk 0:02:20]}  Kf8 {[%clk 0:01:58]} 17. Nxf7 {[%clk 0:02:15]}  Rh7 {[%clk 0:01:55]} 18. Nxe5 {[%clk 0:02:15]}  Be8 {[%clk 0:01:54]} 19. Ng6+ {[%clk 0:02:04]} 1-0


[Site "https://www.chess.com"]

[Event "Titled Tuesday Blitz May 10 Late 2022"]
[White "Vovk, Orest"]
[Black "Bifulco, Michel"]
[WhiteFideId "14113490"]
[BlackFideId "828580"]
[WhiteElo "2203"]
[BlackElo "2165"]
[Result "1-0"]
[Round "08"]
[TimeControl "180+1"]
[Date "2022.05.11"]
[WhiteClock "0:00:47"]
[BlackClock "0:00:02"]

1. d4 {[%clk 0:02:50]}  Nf6 {[%clk 0:03:00]} 2. Nf3 {[%clk 0:02:50]}  g6 {[%clk 0:03:00]} 3. Bf4 {[%clk 0:02:49]}  Bg7 {[%clk 0:03:00]} 4. e3 {[%clk 0:02:49]}  O-O {[%clk 0:03:01]} 5. h3 {[%clk 0:02:49]}  d6 {[%clk 0:03:01]} 6. Be2 {[%clk 0:02:50]}  c5 {[%clk 0:03:02]} 7. c3 {[%clk 0:02:49]}  Nbd7 {[%clk 0:03:01]} 8. O-O {[%clk 0:02:50]}  Re8 {[%clk 0:03:01]} 9. Bh2 {[%clk 0:02:48]}  b6 {[%clk 0:03:00]} 10. Nbd2 {[%clk 0:02:47]}  Bb7 {[%clk 0:03:00]} 11. a4 {[%clk 0:02:48]}  Ne4 {[%clk 0:02:55]} 12. Nxe4 {[%clk 0:02:47]}  Bxe4 {[%clk 0:02:55]} 13. Nd2 {[%clk 0:02:48]}  Bb7 {[%clk 0:02:55]} 14. Bf3 {[%clk 0:02:48]}  Bxf3 {[%clk 0:02:49]} 15. Qxf3 {[%clk 0:02:48]}  e5 {[%clk 0:02:43]} 16. Qc6 {[%clk 0:02:47]}  Nf8 {[%clk 0:02:28]} 17. dxe5 {[%clk 0:02:25]}  dxe5 {[%clk 0:02:20]} 18. Nc4 {[%clk 0:02:24]}  Rc8 {[%clk 0:02:13]} 19. Qb7 {[%clk 0:02:12]}  Rc7 {[%clk 0:02:11]} 20. Qa6 {[%clk 0:02:11]}  Nd7 {[%clk 0:01:45]} 21. Rfd1 {[%clk 0:02:08]}  Qe7 {[%clk 0:01:39]} 22. a5 {[%clk 0:02:04]}  Nb8 {[%clk 0:01:38]} 23. Qb5 {[%clk 0:02:02]}  bxa5 {[%clk 0:01:21]} 24. Qxa5 {[%clk 0:01:46]}  Nc6 {[%clk 0:01:01]} 25. Qa6 {[%clk 0:01:44]}  Rb8 {[%clk 0:00:57]} 26. Rd6 {[%clk 0:01:35]}  Rb6 {[%clk 0:00:44]} 27. Qa4 {[%clk 0:01:27]}  h6 {[%clk 0:00:29]} 28. Rad1 {[%clk 0:01:24]}  Nd4 {[%clk 0:00:17]} 29. Rxb6 {[%clk 0:01:12]}  Nf3+ {[%clk 0:00:05]} 30. gxf3 {[%clk 0:01:11]}  axb6 {[%clk 0:00:05]} 31. Qa8+ {[%clk 0:01:01]}  Kh7 {[%clk 0:00:05]} 32. Qd8 {[%clk 0:00:56]}  Qe6 {[%clk 0:00:01]} 33. Qxc7 {[%clk 0:00:54]}  Qxh3 {[%clk 0:00:02]} 34. Qxf7 {[%clk 0:00:47]} 1-0


[Site "https://www.chess.com"]

[Event "Titled Tuesday Blitz May 10 Late 2022"]
[White "Vujic, Mihailo"]
[Black "Keller, Peter"]
[WhiteFideId "918873"]
[BlackFideId "1272105"]
[WhiteElo "2256"]
[BlackElo "2275"]
[Result "0-1"]
[Round "08"]
[TimeControl "180+1"]
[Date "2022.05.11"]
[WhiteClock "0:00:06"]
[BlackClock "0:00:06"]

1. e4 {[%clk 0:02:58]}  e5 {[%clk 0:02:54]} 2. Nf3 {[%clk 0:02:57]}  Nc6 {[%clk 0:02:52]} 3. d4 {[%clk 0:02:58]}  exd4 {[%clk 0:02:48]} 4. Bc4 {[%clk 0:02:59]}  Nf6 {[%clk 0:02:47]} 5. O-O {[%clk 0:02:57]}  Nxe4 {[%clk 0:02:47]} 6. Re1 {[%clk 0:02:57]}  d5 {[%clk 0:02:47]} 7. Bxd5 {[%clk 0:02:57]}  Qxd5 {[%clk 0:02:48]} 8. Nc3 {[%clk 0:02:57]}  Qd7 {[%clk 0:02:49]} 9. Rxe4+ {[%clk 0:02:55]}  Be7 {[%clk 0:02:48]} 10. Nxd4 {[%clk 0:02:54]}  f5 {[%clk 0:02:28]} 11. Rf4 {[%clk 0:02:52]}  O-O {[%clk 0:02:21]} 12. Nxc6 {[%clk 0:01:42]}  Qxc6 {[%clk 0:02:22]} 13. Qf3 {[%clk 0:01:40]}  Bd7 {[%clk 0:01:43]} 14. Nd5 {[%clk 0:01:32]}  Bd6 {[%clk 0:01:42]} 15. Be3 {[%clk 0:00:27]}  Qxc2 {[%clk 0:01:35]} 16. Rc1 {[%clk 0:00:22]}  Qxb2 {[%clk 0:01:32]} 17. Rh4 {[%clk 0:00:19]}  g6 {[%clk 0:01:10]} 18. Rd1 {[%clk 0:00:15]}  Bc6 {[%clk 0:01:07]} 19. Bd4 {[%clk 0:00:13]}  Qxa2 {[%clk 0:01:01]} 20. Rxh7 {[%clk 0:00:11]}  Kxh7 {[%clk 0:00:42]} 21. Qh3+ {[%clk 0:00:10]}  Kg8 {[%clk 0:00:42]} 22. Qh8+ {[%clk 0:00:09]}  Kf7 {[%clk 0:00:43]} 23. Qg7+ {[%clk 0:00:08]}  Ke6 {[%clk 0:00:40]} 24. Nxc7+ {[%clk 0:00:04]}  Bxc7 {[%clk 0:00:37]} 25. Qxc7 {[%clk 0:00:05]}  Rae8 {[%clk 0:00:07]} 26. Qe5+ {[%clk 0:00:05]}  Kd7 {[%clk 0:00:08]} 27. Bc5+ {[%clk 0:00:04]}  Kc8 {[%clk 0:00:08]} 28. Qd6 {[%clk 0:00:04]}  Qe6 {[%clk 0:00:07]} 29. Qxe6+ {[%clk 0:00:03]}  Rxe6 {[%clk 0:00:07]} 30. Bxf8 {[%clk 0:00:04]}  a5 {[%clk 0:00:07]} 31. h4 {[%clk 0:00:04]}  a4 {[%clk 0:00:08]} 32. Ra1 {[%clk 0:00:04]}  b5 {[%clk 0:00:07]} 33. f3 {[%clk 0:00:05]}  Bd5 {[%clk 0:00:07]} 34. Bb4 {[%clk 0:00:04]}  Rc6 {[%clk 0:00:08]} 35. Re1 {[%clk 0:00:04]}  Rc4 {[%clk 0:00:08]} 36. Ba5 {[%clk 0:00:04]}  b4 {[%clk 0:00:08]} 37. Re8+ {[%clk 0:00:04]}  Kd7 {[%clk 0:00:08]} 38. Re5 {[%clk 0:00:04]}  Kd6 {[%clk 0:00:08]} 39. Re8 {[%clk 0:00:04]}  b3 {[%clk 0:00:08]} 40. Rd8+ {[%clk 0:00:04]}  Ke6 {[%clk 0:00:09]} 41. Re8+ {[%clk 0:00:03]}  Kf7 {[%clk 0:00:09]} 42. Rb8 {[%clk 0:00:02]}  Rc2 {[%clk 0:00:07]} 43. Kh2 {[%clk 0:00:01]}  b2 {[%clk 0:00:07]} 44. Kg3 {[%clk 0:00:02]}  Ba2 {[%clk 0:00:07]} 45. Bc7 {[%clk 0:00:02]}  b1=Q {[%clk 0:00:07]} 46. Bd6 {[%clk 0:00:03]}  Qxb8 {[%clk 0:00:05]} 47. Bxb8 {[%clk 0:00:03]}  Be6 {[%clk 0:00:05]} 48. Bf4 {[%clk 0:00:04]}  a3 {[%clk 0:00:06]} 49. h5 {[%clk 0:00:05]}  gxh5 {[%clk 0:00:06]} 50. Kh4 {[%clk 0:00:05]}  Rxg2 {[%clk 0:00:06]} 51. Bg3 {[%clk 0:00:05]}  a2 {[%clk 0:00:06]} 52. f4 {[%clk 0:00:05]}  a1=Q {[%clk 0:00:06]} 53. Be1 {[%clk 0:00:05]}  Qxe1+ {[%clk 0:00:06]} 54. Kxh5 {[%clk 0:00:06]}  Qh1# {[%clk 0:00:06]} 0-1


[Site "https://www.chess.com"]